bitfinex/quotes_BTCUSD_20240810
["timestamp","ask_amount","ask_price","bid_price","bid_amount"]
[1723267806712,0.97909273,60501.0,60500.0,0.01687416]
[1723267807091,0.97909272,60501.0,60500.0,0.01687416]
[1723267808052,1.05347386,60501.0,60500.0,0.01687416]
[1723267808244,0.97909272,60501.0,60500.0,0.01687416]
[1723267808611,0.97906508,60501.0,60500.0,0.09897416]
[1723267810048,0.20441908,60501.0,60500.0,0.16127319]
[1723267810304,0.31791908,60501.0,60500.0,0.29475105]
[1723267810827,0.64849208,60501.0,60500.0,0.29475105]
[1723267812045,0.64846163,60501.0,60500.0,0.16127319]
[1723267812250,0.64846163,60501.0,60500.0,0.29450675]
[1723267815465,0.64846163,60501.0,60500.0,0.2944827]
[1723267815635,0.64846163,60501.0,60500.0,0.30113001]
[1723267816047,0.64844812,60501.0,60500.0,0.30113006]
[1723267817893,0.64844812,60501.0,60500.0,0.30213006]
[1723267818091,0.31787512,60501.0,60500.0,0.30213006]
[1723267819036,0.31778089,60501.0,60500.0,0.30254933]
[1723267820903,0.03899489,60501.0,60500.0,0.63165325]
[1723267821107,0.001831,60501.0,60500.0,0.96223125]
[1723267821372,0.001831,60501.0,60500.0,1.29280925]
[1723267822323,0.001831,60501.0,60500.0,1.15918042]
[1723267822524,0.001831,60501.0,60500.0,1.29305722]
[1723267823166,0.001831,60501.0,60500.0,1.30270533]
[1723267826039,0.001831,60501.0,60500.0,1.16882853]
[1723267826183,0.001831,60501.0,60500.0,1.30236026]
[1723267826590,0.001831,60501.0,60500.0,1.30232203]
[1723267826989,0.001831,60501.0,60500.0,1.63290003]
[1723267828456,0.000831,60501.0,60500.0,1.63290003]
[1723267829653,0.001831,60501.0,60500.0,1.63290003]
[1723267829849,0.001831,60501.0,60500.0,1.63390003]
[1723267830051,0.001831,60501.0,60500.0,1.30332203]
[1723267830250,0.000831,60501.0,60500.0,1.30232203]
[1723267830452,0.000831,60501.0,60500.0,1.30730956]
[1723267830996,0.000831,60501.0,60500.0,1.30230956]
[1723267831156,0.000831,60501.0,60500.0,1.30730956]
[1723267831351,0.000831,60501.0,60500.0,1.30430956]
[1723267832810,0.000831,60501.0,60500.0,1.30730956]
[1723267833258,0.000831,60501.0,60500.0,1.30726293]
[1723267833398,0.000831,60501.0,60500.0,1.30826293]
[1723267833596,0.000831,60501.0,60500.0,1.30226293]
[1723267834024,0.000831,60501.0,60500.0,1.31326293]
[1723267834420,0.000831,60501.0,60500.0,1.30726293]
[1723267834739,0.000831,60501.0,60500.0,1.30926293]
[1723267836080,0.000831,60501.0,60500.0,1.31626293]
[1723267836273,0.000831,60501.0,60500.0,1.64684093]
[1723267836838,0.000831,60501.0,60500.0,1.64687848]
[1723267838813,0.000831,60501.0,60500.0,1.64691918]
[1723267841961,0.000831,60501.0,60500.0,1.64700345]
[1723267842161,0.000831,60501.0,60500.0,1.31642545]
[1723267843014,0.000831,60501.0,60500.0,1.64700345]
[1723267847716,0.000831,60501.0,60500.0,1.6470687]
[1723267848231,0.000831,60501.0,60500.0,1.64701436]
[1723267853096,0.000831,60501.0,60500.0,1.81235894]
[1723267853802,0.000831,60501.0,60500.0,1.87794576]
[1723267854139,0.000831,60501.0,60500.0,1.87094576]
[1723267854366,0.000831,60501.0,60500.0,1.80535894]
[1723267854571,0.000831,60501.0,60500.0,1.79835894]
[1723267854903,0.000831,60501.0,60500.0,1.87594494]
[1723267855477,0.000831,60501.0,60500.0,1.88695387]
[1723267860086,0.000831,60501.0,60500.0,1.88730977]
[1723267861099,0.000831,60501.0,60500.0,1.5880387]
[1723267861271,0.000831,60501.0,60500.0,1.88755216]
[1723267861676,0.000831,60501.0,60500.0,1.87655216]
[1723267863564,0.000831,60501.0,60500.0,1.88955216]
[1723267864523,0.000831,60501.0,60500.0,1.88908379]
[1723267866847,0.000831,60501.0,60500.0,1.82345162]
[1723267867516,0.000831,60501.0,60500.0,1.32748765]
[1723267867866,0.000831,60501.0,60500.0,1.52440653]
[1723267868065,0.000831,60501.0,60500.0,1.64584342]
[1723267868408,0.000831,60501.0,60500.0,1.65783593]
[1723267868570,0.000831,60501.0,60500.0,1.82300767]
[1723267868735,0.000831,60501.0,60500.0,1.65783593]
[1723267868935,0.000831,60501.0,60500.0,1.64583593]
[1723267869175,0.000831,60501.0,60500.0,1.82300767]
[1723267869386,0.000831,60501.0,60500.0,1.65783593]
[1723267869581,0.000831,60501.0,60500.0,1.82300767]
[1723267870369,0.000831,60501.0,60500.0,1.87563333]
[1723267870606,0.000831,60501.0,60500.0,1.88963333]
[1723267870949,0.000831,60501.0,60500.0,1.87763333]
[1723267871155,0.000831,60501.0,60500.0,1.88963333]
[1723267871728,0.000831,60501.0,60500.0,1.87763333]
[1723267872103,0.000831,60501.0,60500.0,1.89163333]
[1723267873088,0.000831,60501.0,60500.0,2.58163333]
[1723267874850,0.000831,60501.0,60500.0,2.28312281]
[1723267875081,0.000831,60501.0,60500.0,2.58316983]
[1723267875419,0.000831,60501.0,60500.0,2.51745355]
[1723267875696,0.000831,60501.0,60500.0,2.58317042]
[1723267877245,0.000831,60501.0,60500.0,1.89317042]
[1723267878566,0.000831,60501.0,60500.0,1.89285908]
[1723267879006,0.000831,60501.0,60500.0,1.89275889]
[1723267880204,0.000831,60501.0,60500.0,1.89268265]
[1723267881982,0.000831,60501.0,60500.0,1.59304256]
[1723267882196,0.000831,60501.0,60500.0,1.89284452]
[1723267883440,0.000831,60501.0,60500.0,1.96695695]
[1723267884865,0.000831,60501.0,60500.0,1.50016652]
[1723267885065,0.000831,60501.0,60500.0,1.43450781]
[1723267885645,0.000831,60501.0,60500.0,1.76508581]
[1723267886194,0.000831,60501.0,60500.0,1.43450781]
[1723267888094,0.000831,60501.0,60500.0,1.76508581]
[1723267888350,0.000831,60501.0,60500.0,1.43450781]
[1723267888722,0.000831,60501.0,60500.0,1.49670781]
[1723267888937,0.000831,60501.0,60500.0,1.82728581]
[1723267889135,0.000831,60501.0,60500.0,1.82659199]
[1723267889339,0.000831,60501.0,60500.0,1.33060602]
[1723267889571,0.000831,60501.0,60500.0,1.19692853]
[1723267889778,0.000831,60501.0,60500.0,1.6611719]
[1723267890140,0.000831,60501.0,60500.0,1.8265649]
[1723267890304,0.000831,60501.0,60500.0,1.6611719]
[1723267890707,0.000831,60501.0,60500.0,1.8265649]
[1723267890960,0.000831,60501.0,60500.0,1.6611719]
[1723267891286,0.000831,60501.0,60500.0,1.8265649]
[1723267891627,0.000831,60501.0,60500.0,2.09444182]
[1723267891851,0.000831,60501.0,60500.0,2.29068011]
[1723267892817,0.000831,60501.0,60500.0,2.29061542]
[1723267894569,0.000831,60501.0,60500.0,2.29056863]
[1723267896345,0.000831,60501.0,60500.0,2.29059627]
[1723267898587,0.000831,60501.0,60500.0,1.99158049]
[1723267899716,0.000831,60501.0,60500.0,2.29201127]
[1723267899890,0.000831,60501.0,60500.0,2.12050477]
[1723267900088,0.000831,60501.0,60500.0,2.05480223]
[1723267900473,0.000831,60501.0,60500.0,2.05494288]
[1723267900842,0.000831,60501.0,60500.0,2.12069961]
[1723267901315,0.000831,60501.0,60500.0,1.99722498]
[1723267903439,0.000831,60501.0,60500.0,1.96795398]
[1723267903771,0.000831,60501.0,60500.0,1.82807796]
[1723267904936,0.000831,60501.0,60500.0,1.82793478]
[1723267907513,0.000831,60501.0,60500.0,1.35305678]
[1723267907844,0.000831,60501.0,60500.0,1.51756213]
[1723267908042,0.000831,60501.0,60500.0,1.68363478]
[1723267908439,0.000831,60501.0,60500.0,1.82333478]
[1723267908887,0.000831,60501.0,60500.0,1.49275678]
[1723267909607,0.000831,60501.0,60500.0,1.82333478]
[1723267909808,0.000831,60501.0,60500.0,1.65726213]
[1723267910007,0.000831,60501.0,60500.0,1.82333478]
[1723267910224,0.000831,60501.0,60500.0,1.26578413]
[1723267910455,0.000831,60501.0,60500.0,1.43185678]
[1723267912816,0.000831,60501.0,60500.0,1.13142853]
[1723267913051,0.000831,60501.0,60500.0,1.43157532]
[1723267913212,0.000831,60501.0,60500.0,1.46200653]
[1723267913409,0.000831,60501.0,60500.0,1.5962191]
[1723267913616,0.000831,60501.0,60500.0,1.76215475]
[1723267913823,0.000831,60501.0,60500.0,1.5962191]
[1723267914035,0.000831,60501.0,60500.0,1.76215475]
[1723267914233,0.000831,60501.0,60500.0,1.5962191]
[1723267914439,0.000831,60501.0,60500.0,1.76215475]
[1723267914646,0.000831,60501.0,60500.0,1.6605191]
[1723267914854,0.000831,60501.0,60500.0,1.82645475]
[1723267915562,0.000831,60501.0,60500.0,1.6605191]
[1723267915729,0.000831,60501.0,60500.0,1.82645475]
[1723267915931,0.000831,60501.0,60500.0,1.6605191]
[1723267916169,0.000831,60501.0,60500.0,1.82645475]
[1723267916324,0.000831,60501.0,60500.0,1.6605191]
[1723267916524,0.000831,60501.0,60500.0,1.82645475]
[1723267918437,0.000831,60501.0,60500.0,1.49587675]
[1723267918637,0.000831,60501.0,60500.0,1.19572853]
[1723267918833,0.000831,60501.0,60500.0,1.49538923]
[1723267919035,0.000831,60501.0,60500.0,1.82596723]
[1723267920168,0.000831,60501.0,60500.0,1.82595064]
[1723267920399,0.000831,60501.0,60500.0,1.49537264]
[1723267920771,0.000831,60501.0,60500.0,1.35227264]
[1723267921005,0.000831,60501.0,60500.0,1.18658995]
[1723267922565,0.000831,60501.0,60500.0,1.05262853]
[1723267922717,0.000831,60501.0,60500.0,1.18680171]
[1723267923130,0.000831,60501.0,60500.0,1.18680314]
[1723267927567,0.000831,60501.0,60500.0,1.35269744]
[1723267927842,0.000831,60501.0,60500.0,1.18680314]
[1723267928247,0.000831,60501.0,60500.0,1.65438114]
[1723267928542,0.000831,60501.0,60500.0,1.32380314]
[1723267928765,0.000831,60501.0,60500.0,1.65438114]
[1723267928975,0.000831,60501.0,60500.0,1.32380314]
[1723267929137,0.000831,60501.0,60500.0,1.65438114]
[1723267929343,0.000831,60501.0,60500.0,1.32380314]
[1723267929705,0.000831,60501.0,60500.0,1.65438114]
[1723267930110,0.000831,60501.0,60500.0,1.65459854]
[1723267930513,0.000831,60501.0,60500.0,1.32402054]
[1723267931547,0.000831,60501.0,60500.0,1.65459854]
[1723267931928,0.000831,60501.0,60500.0,1.82070109]
[1723267932447,0.000831,60501.0,60500.0,1.88643342]
[1723267934177,0.000831,60501.0,60500.0,1.9605346]
[1723267934369,0.000831,60501.0,60500.0,1.96025699]
[1723267935749,0.000831,60501.0,60500.0,1.88615581]
[1723267936244,0.000831,60501.0,60500.0,1.96025699]
[1723267937447,0.000831,60501.0,60500.0,1.66000401]
[1723267937645,0.000831,60501.0,60500.0,1.96025559]
[1723267938269,0.000831,60501.0,60500.0,1.88615441]
[1723267938398,0.000831,60501.0,60500.0,1.96025559]
[1723267938921,0.000831,60501.0,60500.0,1.98954386]
[1723267939334,0.000831,60501.0,60500.0,1.88615441]
[1723267939572,0.000831,60501.0,60500.0,1.96023973]
[1723267939910,0.000831,60501.0,60500.0,1.96024166]
[1723267940160,0.000831,60501.0,60500.0,1.48988011]
[1723267940575,0.000831,60501.0,60500.0,1.82045811]
[1723267940714,0.000831,60501.0,60500.0,1.88622412]
[1723267941125,0.000831,60501.0,60500.0,1.88624368]
[1723267943839,0.000831,60501.0,60500.0,1.96033093]
[1723267944229,0.000831,60501.0,60500.0,1.41866568]
[1723267944670,0.000831,60501.0,60500.0,1.3536549]
[1723267945009,0.000831,60501.0,60500.0,1.05262853]
[1723267945215,0.000831,60501.0,60500.0,1.35365545]
[1723267946553,0.000831,60501.0,60500.0,1.43275545]
[1723267946964,0.000831,60501.0,60500.0,1.49405545]
[1723267948334,0.000831,60501.0,60500.0,1.35919806]
[1723267948539,0.000831,60501.0,60500.0,1.49367379]
[1723267951900,0.000831,60501.0,60500.0,1.19302853]
[1723267952115,0.000831,60501.0,60500.0,1.82445464]
[1723267952543,0.000831,60501.0,60500.0,1.9643268]
[1723267952970,0.000831,60501.0,60500.0,1.98903009]
[1723267953405,0.000831,60501.0,60500.0,2.16511641]
[1723267954305,0.000831,60501.0,60500.0,2.06172721]
[1723267954513,0.000831,60501.0,60500.0,1.98901451]
[1723267955639,0.000831,60501.0,60500.0,1.98903227]
[1723267956089,0.000831,60501.0,60500.0,1.6881843]
[1723267956298,0.000831,60501.0,60500.0,1.98903598]
[1723267956753,0.000831,60501.0,60500.0,1.96434628]
[1723267957195,0.000831,60501.0,60500.0,1.89023839]
[1723267957873,0.000831,60501.0,60500.0,1.96434628]
[1723267958312,0.000831,60501.0,60500.0,1.57246828]
[1723267958526,0.000831,60501.0,60500.0,1.43258021]
[1723267959924,0.000831,60501.0,60500.0,1.35348021]
[1723267961362,0.000831,60501.0,60500.0,1.49228021]
[1723267961546,0.000831,60501.0,60500.0,1.96278751]
[1723267961855,0.000831,60501.0,60500.0,1.63220951]
[1723267962793,0.000831,60501.0,60500.0,1.63232133]
[1723267963205,0.000831,60501.0,60500.0,1.63230473]
[1723267965310,0.000831,60501.0,60500.0,1.16292673]
[1723267965463,0.000831,60501.0,60500.0,0.85670983]
[1723267965666,0.000831,60501.0,60500.0,1.02304521]
[1723267965868,0.000831,60501.0,60500.0,0.85670983]
[1723267966476,0.000831,60501.0,60500.0,0.85653041]
[1723267966908,0.000831,60501.0,60500.0,0.85672235]
[1723267967597,0.000831,60501.0,60500.0,0.85672063]
[1723267968613,0.000831,60501.0,60500.0,0.85672034]
[1723267970285,0.000831,60501.0,60500.0,0.85672739]
[1723267971469,0.000831,60501.0,60500.0,1.33190539]
[1723267977436,0.000831,60501.0,60500.0,1.33189125]
[1723267978057,0.000831,60501.0,60500.0,1.33189932]
[1723267981108,0.000831,60501.0,60500.0,1.33186413]
[1723267982111,0.000831,60510.0,60505.0,0.330551]
[1723267982237,0.1135,60507.0,60506.0,0.46372052]
[1723267982665,0.1135,60507.0,60506.0,0.4814376]
[1723267983092,0.1135,60507.0,60506.0,0.48163663]
[1723267983501,0.1135,60507.0,60506.0,0.34700103]
[1723267983817,0.1135,60507.0,60506.0,0.48168499]
[1723267984194,0.1135,60507.0,60506.0,0.48968499]
[1723267984853,0.166093,60510.0,60506.0,0.66395899]
[1723267984854,0.018431,60510.0,60506.0,0.66395899]
[1723267985150,0.018431,60510.0,60506.0,0.35500203]
[1723267985151,0.1135,60507.0,60506.0,0.35500203]
[1723267985355,0.1135,60507.0,60506.0,0.4897153]
[1723267986210,0.114331,60507.0,60506.0,0.4897153]
[1723267986411,0.114331,60507.0,60506.0,0.4967153]
[1723267987074,0.114331,60507.0,60506.0,0.36200203]
[1723267987278,0.114331,60507.0,60506.0,0.49709241]
[1723267987714,0.114331,60507.0,60506.0,0.33182141]
[1723267987943,0.114331,60507.0,60506.0,0.49709341]
[1723267988292,0.114331,60507.0,60506.0,0.49711323]
[1723267989458,0.000831,60507.0,60506.0,1.22000323]
[1723267989612,0.000831,60507.0,60506.0,1.30214304]
[1723267990667,0.000831,60507.0,60506.0,1.16729303]
[1723267990865,0.000831,60507.0,60506.0,1.30228466]
[1723267991651,0.000831,60507.0,60506.0,0.97173966]
[1723267994337,0.000831,60507.0,60506.0,0.97183955]
[1723267995942,0.000831,60507.0,60506.0,1.30238455]
[1723267998161,0.000831,60507.0,60506.0,1.16729303]
[1723267998359,0.000831,60507.0,60506.0,1.30377543]
[1723267998785,0.000831,60507.0,60506.0,1.63432043]
[1723267999196,0.000831,60507.0,60506.0,1.30377543]
[1723267999370,0.000831,60507.0,60506.0,1.30382539]
[1723268000094,0.000831,60507.0,60506.0,1.29682539]
[1723268000274,0.000831,60507.0,60506.0,1.30382539]
[1723268000676,0.000831,60507.0,60506.0,1.29582539]
[1723268000882,0.000831,60507.0,60506.0,1.29682539]
[1723268001186,0.000831,60507.0,60506.0,1.30482539]
[1723268001388,0.000831,60507.0,60506.0,1.29689919]
[1723268001826,0.000831,60507.0,60506.0,1.30589919]
[1723268003125,0.000831,60507.0,60506.0,1.47410317]
[1723268003301,0.000831,60507.0,60506.0,1.46610317]
[1723268003503,0.000831,60507.0,60506.0,1.47410317]
[1723268004029,0.000831,60507.0,60506.0,1.46610317]
[1723268004227,0.000831,60507.0,60506.0,1.45710317]
[1723268004531,0.000831,60507.0,60506.0,1.30789919]
[1723268004911,0.000831,60507.0,60506.0,1.16129303]
[1723268005062,0.000831,60507.0,60506.0,1.2979463]
[1723268005297,0.000831,60507.0,60506.0,1.2969463]
[1723268005672,0.000831,60507.0,60506.0,1.3049463]
[1723268005889,0.000831,60507.0,60506.0,1.2969463]
[1723268006338,0.000831,60507.0,60506.0,1.3049463]
[1723268006646,0.000831,60507.0,60506.0,1.16029303]
[1723268007154,0.000831,60507.0,60506.0,1.16729303]
[1723268008077,0.000831,60507.0,60506.0,1.02309303]
[1723268008460,0.000831,60507.0,60506.0,1.1596975]
[1723268009239,0.000831,60507.0,60506.0,1.1606116]
[1723268009652,0.000831,60507.0,60506.0,1.2416116]
[1723268010103,0.000831,60507.0,60506.0,1.10500713]
[1723268010475,0.000831,60507.0,60506.0,1.16830713]
[1723268012525,0.000831,60507.0,60506.0,1.16030713]
[1723268012737,0.000831,60507.0,60506.0,1.15330713]
[1723268012947,0.000831,60507.0,60506.0,1.16130713]
[1723268013088,0.000831,60507.0,60506.0,1.16830713]
[1723268015491,0.000831,60507.0,60506.0,1.30515198]
[1723268015693,0.000831,60507.0,60506.0,1.47357183]
[1723268015904,0.000831,60507.0,60506.0,1.30515198]
[1723268016210,0.000831,60507.0,60506.0,1.47357183]
[1723268016439,0.000831,60507.0,60506.0,1.30515198]
[1723268016678,0.000831,60507.0,60506.0,1.47357183]
[1723268016899,0.000831,60507.0,60506.0,1.30515198]
[1723268017123,0.000831,60507.0,60506.0,1.47357183]
[1723268017344,0.000831,60507.0,60506.0,1.30515198]
[1723268017578,0.000831,60507.0,60506.0,1.47357183]
[1723268018244,0.000831,60507.0,60506.0,1.47393908]
[1723268019319,0.000831,60507.0,60506.0,1.47398874]
[1723268020129,0.000831,60507.0,60506.0,1.46698874]
[1723268020331,0.000831,60507.0,60506.0,1.47398874]
[1723268021046,0.000831,60507.0,60506.0,1.46598874]
[1723268021247,0.000831,60507.0,60506.0,1.47398874]
[1723268022468,0.000831,60507.0,60506.0,1.47390655]
[1723268022986,0.000831,60507.0,60506.0,1.47402062]
[1723268026468,0.000831,60507.0,60506.0,1.47396047]
[1723268026888,0.000831,60507.0,60506.0,1.16830713]
[1723268027095,0.000831,60507.0,60506.0,1.47401721]
[1723268027951,0.000831,60507.0,60506.0,1.46601721]
[1723268028159,0.000831,60507.0,60506.0,1.45901721]
[1723268028398,0.000831,60507.0,60506.0,1.46701721]
[1723268028601,0.000831,60507.0,60506.0,1.47401721]
[1723268029999,0.000831,60507.0,60506.0,1.16830713]
[1723268030198,0.000831,60507.0,60506.0,1.474389]
[1723268033707,0.000831,60507.0,60506.0,1.47403756]
[1723268034528,0.000831,60507.0,60506.0,1.24208524]
[1723268034939,0.000831,60507.0,60506.0,0.91154024]
[1723268035118,0.000831,60507.0,60506.0,0.83054024]
[1723268035321,0.000831,60507.0,60506.0,0.82354024]
[1723268035528,0.000831,60507.0,60506.0,1.15308524]
[1723268035741,0.000831,60507.0,60506.0,0.82254024]
[1723268035937,0.000831,60507.0,60506.0,0.81554024]
[1723268036352,0.000831,60507.0,60506.0,0.82254024]
[1723268036764,0.000831,60507.0,60506.0,1.15308524]
[1723268036977,0.000831,60507.0,60506.0,1.16108524]
[1723268037191,0.000831,60507.0,60506.0,1.16090395]
[1723268037636,0.000831,60507.0,60506.0,1.30030395]
[1723268038998,0.000831,60507.0,60506.0,1.30062259]
[1723268042967,0.000831,60507.0,60506.0,1.16340713]
[1723268043272,0.000831,60507.0,60506.0,1.30062171]
[1723268043677,0.000831,60507.0,60506.0,1.30062156]
[1723268046157,0.000831,60507.0,60506.0,1.47249252]
[1723268047033,0.000831,60507.0,60506.0,1.16340713]
[1723268047247,0.000831,60507.0,60506.0,1.47242721]
[1723268047654,0.000831,60507.0,60506.0,1.47240477]
[1723268048276,0.000831,60507.0,60506.0,1.47240556]
[1723268048480,0.000831,60507.0,60506.0,1.30061759]
[1723268048906,0.000831,60507.0,60506.0,1.47230524]
[1723268049319,0.000831,60507.0,60506.0,1.47230266]
[1723268049647,0.00063208,60507.0,60506.0,1.47230266]
[1723268050677,0.00063208,60507.0,60506.0,1.46430266]
[1723268050901,0.00063208,60507.0,60506.0,1.464393]
[1723268051098,0.00063208,60507.0,60506.0,1.472393]
[1723268051273,0.00063208,60507.0,60506.0,1.465393]
[1723268051482,0.00063208,60507.0,60506.0,1.472393]
[1723268054411,0.00063208,60507.0,60506.0,1.47236761]
[1723268057179,0.00063208,60507.0,60506.0,1.46436761]
[1723268057413,0.00063208,60507.0,60506.0,1.45736761]
[1723268057655,0.00063208,60507.0,60506.0,1.47236761]
[1723268058128,0.00063208,60507.0,60506.0,1.47154778]
[1723268058596,0.00063208,60507.0,60506.0,1.47154749]
[1723268061661,0.00063208,60507.0,60506.0,1.47154926]
[1723268062292,0.00063208,60507.0,60506.0,1.45654926]
[1723268063785,0.00063208,60507.0,60506.0,1.46454926]
[1723268063996,0.00063208,60507.0,60506.0,1.46354926]
[1723268064427,0.00063208,60507.0,60506.0,1.46454926]
[1723268064645,0.00063208,60507.0,60506.0,1.47154926]
[1723268065089,0.00063208,60507.0,60506.0,1.15540713]
[1723268065300,0.00063208,60507.0,60506.0,1.45667019]
[1723268065526,0.00063208,60507.0,60506.0,1.47167019]
[1723268065737,0.00063208,60507.0,60506.0,1.46367019]
[1723268066843,0.00063208,60507.0,60506.0,1.45667019]
[1723268067057,0.00063208,60507.0,60506.0,1.46467019]
[1723268067272,0.00063208,60507.0,60506.0,1.46667019]
[1723268067724,0.00063208,60507.0,60506.0,1.47767019]
[1723268068759,0.00063208,60507.0,60506.0,1.16940713]
[1723268069003,0.00063208,60507.0,60506.0,1.47766951]
[1723268069419,0.00063208,60507.0,60506.0,1.47766975]
[1723268072404,0.00063208,60507.0,60506.0,1.47766112]
[1723268075238,0.00063208,60507.0,60506.0,1.16940713]
[1723268079573,0.00063208,60507.0,60506.0,1.30662259]
[1723268082273,0.00063208,60507.0,60506.0,1.3066213]
[1723268085315,0.00063208,60507.0,60506.0,1.16940713]
[1723268085522,0.00063208,60507.0,60506.0,1.30662036]
[1723268089415,0.00063208,60507.0,60506.0,1.24352036]
[1723268091011,0.00063208,60507.0,60506.0,0.34085836]
[1723268091186,0.66470534,60507.0,60506.0,0.34085836]
[1723268091388,0.66470534,60507.0,60506.0,0.20364513]
[1723268091389,0.64679891,60507.0,60506.0,0.20364513]
[1723268091606,0.74601177,60507.0,60506.0,0.20364513]
[1723268091803,0.74601177,60507.0,60506.0,0.19264513]
[1723268092212,0.72117619,60507.0,60506.0,0.19264513]
[1723268092417,0.72110908,60507.0,60506.0,0.19264513]
[1723268092626,0.72110908,60507.0,60506.0,0.18264513]
[1723268092939,0.0141,60506.0,60500.0,0.0019141]
[1723268093160,0.0141,60506.0,60497.0,0.0009141]
[1723268093162,1.49765,60498.0,60497.0,0.0009141]
[1723268093379,1.49765,60498.0,60482.0,0.0009141]
[1723268093380,1.157215,60490.0,60482.0,0.0009141]
[1723268093555,1.30745826,60490.0,60482.0,0.0009141]
[1723268093818,1.40745826,60490.0,60482.0,0.0009141]
[1723268094040,1.43155826,60490.0,60482.0,0.0009141]
[1723268095658,1.43365464,60490.0,60489.0,0.0019141]
[1723268096273,1.43465464,60490.0,60489.0,0.0029141]
[1723268096444,1.42465464,60490.0,60489.0,0.0029141]
[1723268096651,1.43465464,60490.0,60489.0,0.0029141]
[1723268096846,1.387815,60490.0,60489.0,0.0029141]
[1723268098030,1.386815,60490.0,60489.0,0.0009141]
[1723268098256,1.395815,60490.0,60489.0,0.0019141]
[1723268098468,1.396815,60490.0,60489.0,0.0029141]
[1723268099650,1.386815,60490.0,60489.0,0.0029141]
[1723268100097,1.385815,60490.0,60489.0,0.0019141]
[1723268100402,1.386815,60490.0,60489.0,0.0029141]
[1723268101510,1.286815,60490.0,60489.0,0.0029141]
[1723268101722,1.286815,60490.0,60489.0,0.16672902]
[1723268101723,0.002,60490.0,60489.0,0.16672902]
[1723268101939,0.002,60490.0,60489.0,0.31262902]
[1723268102188,0.002,60490.0,60489.0,0.3402328]
[1723268102824,0.001,60490.0,60489.0,0.3392328]
[1723268103215,0.001,60490.0,60489.0,0.5105518]
[1723268103425,0.165294,60499.0,60491.0,0.08]
[1723268103634,0.330578,60500.0,60492.0,0.16381492]
[1723268103840,0.165299,60497.0,60492.0,0.19141614]
[1723268104051,0.165299,60497.0,60492.0,0.35672614]
[1723268104266,0.1653,60496.0,60492.0,0.35672614]
[1723268104649,0.1653,60496.0,60492.0,0.19141614]
[1723268104871,0.165303,60495.0,60492.0,0.19141614]
[1723268105076,0.165308,60493.0,60492.0,0.19141614]
[1723268105276,0.609424,60493.0,60492.0,0.19141614]
[1723268105621,0.609424,60493.0,60492.0,0.16381492]
[1723268105622,0.278808,60493.0,60492.0,0.16381492]
[1723268105844,0.165308,60493.0,60492.0,0.19141614]
[1723268106065,0.165308,60493.0,60492.0,0.19241614]
[1723268106263,0.165308,60493.0,60492.0,0.19141614]
[1723268107400,0.165308,60493.0,60492.0,0.19241614]
[1723268107897,0.165308,60493.0,60492.0,0.19541614]
[1723268108322,0.165308,60493.0,60492.0,0.19841614]
[1723268120381,0.82654,60493.0,60492.0,0.19841614]
[1723268120584,1.270656,60493.0,60492.0,0.03460122]
[1723268120796,1.270656,60493.0,60492.0,0.007]
[1723268121450,1.270656,60493.0,60492.0,0.004]
[1723268121660,1.32301839,60493.0,60492.0,0.004]
[1723268122086,1.76363439,60493.0,60492.0,0.004]
[1723268122283,0.25076239,60493.0,60489.0,0.0009141]
[1723268122532,1.70729446,60490.0,60489.0,0.0009141]
[1723268122759,1.84455685,60490.0,60489.0,0.0009141]
[1723268123147,1.84466339,60490.0,60489.0,0.0009141]
[1723268123365,1.73116339,60490.0,60489.0,0.0009141]
[1723268123543,1.83466339,60490.0,60489.0,0.0009141]
[1723268123743,1.79729446,60490.0,60489.0,0.0009141]
[1723268123914,1.83563319,60490.0,60489.0,0.0019141]
[1723268124128,1.84463319,60490.0,60489.0,0.0009141]
[1723268124540,1.83463319,60490.0,60489.0,0.0009141]
[1723268125391,1.83463319,60490.0,60489.0,0.0019141]
[1723268125699,1.84563319,60490.0,60489.0,0.0019141]
[1723268125899,1.83563319,60490.0,60489.0,0.0019141]
[1723268126322,1.84563319,60490.0,60489.0,0.0019141]
[1723268127215,1.84663319,60490.0,60489.0,0.0029141]
[1723268127663,1.84563319,60490.0,60489.0,0.0019141]
[1723268128012,1.84663319,60490.0,60489.0,0.0029141]
[1723268128842,1.75478673,60490.0,60489.0,0.0029141]
[1723268129486,1.29655373,60490.0,60489.0,0.0029141]
[1723268129698,0.97942073,60490.0,60489.0,0.0029141]
[1723268129980,0.53528773,60490.0,60489.0,0.0029141]
[1723268130172,0.53528773,60490.0,60489.0,0.23112902]
[1723268130173,0.497949,60490.0,60489.0,0.23112902]
[1723268130377,0.495949,60490.0,60489.0,0.30722902]
[1723268130581,0.495949,60490.0,60489.0,0.33707399]
[1723268130582,0.496949,60490.0,60489.0,0.33707399]
[1723268130787,0.497949,60490.0,60489.0,0.33707399]
[1723268131174,0.496949,60490.0,60489.0,0.33607399]
[1723268131384,0.497949,60490.0,60489.0,0.33707399]
[1723268131628,0.497949,60490.0,60489.0,0.32326705]
[1723268131936,0.610449,60490.0,60489.0,0.32226705]
[1723268132302,0.611449,60490.0,60489.0,0.32326705]
[1723268137253,0.61125005,60490.0,60489.0,0.32326705]
[1723268137560,0.94188305,60490.0,60489.0,0.32326705]
[1723268137735,0.61125005,60490.0,60489.0,0.32326705]
[1723268139111,0.94188305,60490.0,60489.0,0.32326705]
[1723268139576,0.61125005,60490.0,60489.0,0.32326705]
[1723268139992,0.94188305,60490.0,60489.0,0.32326705]
[1723268140551,0.94188305,60490.0,60489.0,0.0029141]
[1723268140749,0.97919246,60490.0,60489.0,0.0029141]
[1723268141789,1.30982546,60490.0,60489.0,0.0029141]
[1723268142566,0.97919246,60490.0,60489.0,0.0029141]
[1723268143173,1.30982546,60490.0,60489.0,0.0029141]
[1723268143369,0.97919246,60490.0,60489.0,0.0029141]
[1723268143815,1.30982546,60490.0,60489.0,0.0029141]
[1723268145024,1.30993243,60490.0,60489.0,0.0029141]
[1723268146506,0.97929943,60490.0,60489.0,0.0029141]
[1723268146931,1.30993243,60490.0,60489.0,0.0029141]
[1723268148418,1.27251605,60490.0,60489.0,0.0029141]
[1723268148695,1.31001449,60490.0,60489.0,0.0029141]
[1723268148907,1.32001449,60490.0,60489.0,0.0029141]
[1723268149105,1.30998053,60490.0,60489.0,0.0029141]
[1723268149609,1.35945014,60490.0,60489.0,0.0029141]
[1723268149763,1.36945014,60490.0,60489.0,0.0029141]
[1723268149979,1.71418314,60490.0,60489.0,0.0029141]
[1723268150127,1.48949972,60490.0,60489.0,0.0029141]